[Event "Titled Tuesday Blitz November 14 Early 2023"]
[White "thisjuan"]
[Black "Skaric, Djuro"]
[BlackFideId "934569"]
[WhiteElo "2192"]
[BlackElo "2372"]
[Result "1/2-1/2"]
[Round "7"]
[TimeControl "180+1"]
[Date "2023.11.14"]
[WhiteClock "0:00:20"]
[BlackClock "0:01:05"]
[Board "161"]

1. c4 {[%clk 0:02:57]}  d6 {[%clk 0:03:00]} 2. g3 {[%clk 0:02:54]}  g6 {[%clk 0:03:00]} 3. Bg2 {[%clk 0:02:55]}  Bg7 {[%clk 0:03:01]} 4. Nf3 {[%clk 0:02:55]}  Nf6 {[%clk 0:03:01]} 5. O-O {[%clk 0:02:55]}  O-O {[%clk 0:03:02]} 6. d4 {[%clk 0:02:56]}  Nc6 {[%clk 0:03:02]} 7. Nc3 {[%clk 0:02:52]}  h6 {[%clk 0:03:03]} 8. h3 {[%clk 0:02:50]}  e5 {[%clk 0:03:02]} 9. dxe5 {[%clk 0:02:41]}  dxe5 {[%clk 0:03:03]} 10. Qa4 {[%clk 0:02:33]}  Nd7 {[%clk 0:03:02]} 11. Be3 {[%clk 0:02:31]}  f5 {[%clk 0:02:59]} 12. Rad1 {[%clk 0:02:27]}  e4 {[%clk 0:02:57]} 13. Nd4 {[%clk 0:02:21]}  Qf6 {[%clk 0:02:51]} 14. Nxc6 {[%clk 0:02:18]}  bxc6 {[%clk 0:02:50]} 15. Bd4 {[%clk 0:02:17]}  Qe6 {[%clk 0:02:43]} 16. Bxg7 {[%clk 0:02:05]}  Kxg7 {[%clk 0:02:42]} 17. e3 {[%clk 0:02:02]}  a5 {[%clk 0:02:38]} 18. Ne2 {[%clk 0:01:57]}  Nc5 {[%clk 0:02:37]} 19. Qc2 {[%clk 0:01:57]}  Ba6 {[%clk 0:02:35]} 20. b3 {[%clk 0:01:54]}  Qf6 {[%clk 0:02:34]} 21. Nf4 {[%clk 0:01:40]}  Rfd8 {[%clk 0:02:23]} 22. a3 {[%clk 0:01:38]}  Kf7 {[%clk 0:02:19]} 23. b4 {[%clk 0:01:37]}  axb4 {[%clk 0:02:19]} 24. axb4 {[%clk 0:01:37]}  Ne6 {[%clk 0:02:17]} 25. Nxe6 {[%clk 0:01:30]}  Qxe6 {[%clk 0:02:16]} 26. b5 {[%clk 0:01:28]}  cxb5 {[%clk 0:02:13]} 27. cxb5 {[%clk 0:01:27]}  Bxb5 {[%clk 0:02:05]} 28. Qxc7+ {[%clk 0:01:24]}  Rd7 {[%clk 0:02:04]} 29. Rxd7+ {[%clk 0:01:22]}  Qxd7 {[%clk 0:02:02]} 30. Rc1 {[%clk 0:01:16]}  Qxc7 {[%clk 0:01:58]} 31. Rxc7+ {[%clk 0:01:15]}  Ke6 {[%clk 0:01:58]} 32. Rb7 {[%clk 0:01:08]}  Ra1+ {[%clk 0:01:56]} 33. Kh2 {[%clk 0:01:08]}  Bd3 {[%clk 0:01:55]} 34. Rb6+ {[%clk 0:01:07]}  Kf7 {[%clk 0:01:54]} 35. Rb7+ {[%clk 0:01:07]}  Kf6 {[%clk 0:01:54]} 36. Rb6+ {[%clk 0:01:07]}  Kg5 {[%clk 0:01:53]} 37. g4 {[%clk 0:00:58]}  Bf1 {[%clk 0:01:47]} 38. Kg3 {[%clk 0:00:49]}  h5 {[%clk 0:01:42]} 39. h4+ {[%clk 0:00:46]}  Kh6 {[%clk 0:01:40]} 40. g5+ {[%clk 0:00:46]}  Kg7 {[%clk 0:01:39]} 41. Rb7+ {[%clk 0:00:46]}  Kf8 {[%clk 0:01:39]} 42. Rb6 {[%clk 0:00:46]}  Kf7 {[%clk 0:01:38]} 43. Rb7+ {[%clk 0:00:44]}  Kf8 {[%clk 0:01:36]} 44. Rb6 {[%clk 0:00:40]}  Kf7 {[%clk 0:01:34]} 45. Rb7+ {[%clk 0:00:26]}  Ke6 {[%clk 0:01:33]} 46. Rb6+ {[%clk 0:00:23]}  Ke5 {[%clk 0:01:29]} 47. Rxg6 {[%clk 0:00:21]}  Bxg2 {[%clk 0:01:19]} 48. Kxg2 {[%clk 0:00:21]}  f4 {[%clk 0:01:19]} 49. exf4+ {[%clk 0:00:20]}  Kxf4 {[%clk 0:01:19]} 50. Rf6+ {[%clk 0:00:20]}  Kg4 {[%clk 0:01:19]} 51. g6 {[%clk 0:00:19]}  Ra8 {[%clk 0:01:17]} 52. g7 {[%clk 0:00:18]}  Rg8 {[%clk 0:01:16]} 53. Rg6+ {[%clk 0:00:19]}  Kf4 {[%clk 0:01:07]} 54. Kh3 {[%clk 0:00:19]}  Kf3 {[%clk 0:01:06]} 55. Rf6+ {[%clk 0:00:19]}  Ke2 {[%clk 0:01:06]} 56. Rf7 {[%clk 0:00:18]}  e3 {[%clk 0:01:02]} 57. fxe3 {[%clk 0:00:19]}  Kxe3 {[%clk 0:01:02]} 58. Kg3 {[%clk 0:00:19]}  Ke4 {[%clk 0:01:03]} 59. Kf2 {[%clk 0:00:18]}  Ke5 {[%clk 0:01:03]} 60. Kf3 {[%clk 0:00:19]}  Ke6 {[%clk 0:01:03]} 61. Rb7 {[%clk 0:00:19]}  Kf5 {[%clk 0:01:03]} 62. Rb5+ {[%clk 0:00:18]}  Kg6 {[%clk 0:01:03]} 63. Rg5+ {[%clk 0:00:18]}  Kh6 {[%clk 0:01:03]} 64. Kf4 {[%clk 0:00:18]}  Rxg7 {[%clk 0:01:03]} 65. Rxg7 {[%clk 0:00:18]}  Kxg7 {[%clk 0:01:03]} 66. Kg5 {[%clk 0:00:18]}  Kh7 {[%clk 0:01:03]} 67. Kxh5 {[%clk 0:00:19]}  Kg7 {[%clk 0:01:04]} 68. Kg5 {[%clk 0:00:19]}  Kh7 {[%clk 0:01:04]} 69. h5 {[%clk 0:00:19]}  Kg7 {[%clk 0:01:05]} 70. h6+ {[%clk 0:00:19]}  Kh7 {[%clk 0:01:05]} 71. Kh5 {[%clk 0:00:19]}  Kg8 {[%clk 0:01:06]} 72. Kg6 {[%clk 0:00:20]}  Kh8 {[%clk 0:01:05]} 73. h7 {[%clk 0:00:20]} 1/2-1/2


[Site "https://www.chess.com"]

[Event "Titled Tuesday Blitz November 14 Early 2023"]
[White "Mestnikov, Aisen"]
[Black "Thake, Conrad"]
[WhiteFideId "34130117"]
[BlackFideId "5602947"]
[WhiteElo "2365"]
[BlackElo "1900"]
[Result "1-0"]
[Round "7"]
[TimeControl "180+1"]
[Date "2023.11.14"]
[WhiteClock "0:00:15"]
[BlackClock "0:00:00"]
[Board "164"]

1. d4 {[%clk 0:02:59]}  d5 {[%clk 0:02:58]} 2. Nf3 {[%clk 0:02:59]}  c6 {[%clk 0:02:58]} 3. c4 {[%clk 0:03:00]}  Nf6 {[%clk 0:02:58]} 4. Nc3 {[%clk 0:03:01]}  e6 {[%clk 0:02:55]} 5. g3 {[%clk 0:03:01]}  Be7 {[%clk 0:02:52]} 6. Bg2 {[%clk 0:03:02]}  O-O {[%clk 0:02:51]} 7. O-O {[%clk 0:03:03]}  Nbd7 {[%clk 0:02:43]} 8. Qc2 {[%clk 0:03:02]}  a5 {[%clk 0:02:38]} 9. Rd1 {[%clk 0:03:02]}  h6 {[%clk 0:02:31]} 10. e4 {[%clk 0:03:01]}  dxe4 {[%clk 0:02:29]} 11. Nxe4 {[%clk 0:03:01]}  Nxe4 {[%clk 0:02:29]} 12. Qxe4 {[%clk 0:03:02]}  Nf6 {[%clk 0:02:30]} 13. Qc2 {[%clk 0:03:01]}  a4 {[%clk 0:02:17]} 14. Bf4 {[%clk 0:03:00]}  Qa5 {[%clk 0:02:13]} 15. Ne5 {[%clk 0:02:59]}  Nd7 {[%clk 0:02:08]} 16. Nd3 {[%clk 0:02:59]}  Bf6 {[%clk 0:01:57]} 17. Nc5 {[%clk 0:02:55]}  Nxc5 {[%clk 0:01:54]} 18. dxc5 {[%clk 0:02:55]}  Qb4 {[%clk 0:01:52]} 19. Rab1 {[%clk 0:02:52]}  Qxc5 {[%clk 0:01:50]} 20. Bd6 {[%clk 0:02:52]}  Qb6 {[%clk 0:01:33]} 21. Bxf8 {[%clk 0:02:42]}  Kxf8 {[%clk 0:01:33]} 22. Qd2 {[%clk 0:02:39]}  Qc7 {[%clk 0:01:23]} 23. Qd6+ {[%clk 0:02:38]}  Qxd6 {[%clk 0:01:21]} 24. Rxd6 {[%clk 0:02:39]}  Ke7 {[%clk 0:01:17]} 25. Rd2 {[%clk 0:02:32]}  Ra5 {[%clk 0:01:16]} 26. b4 {[%clk 0:02:29]}  axb3 {[%clk 0:01:15]} 27. axb3 {[%clk 0:02:29]}  Bc3 {[%clk 0:01:01]} 28. Rd3 {[%clk 0:02:25]}  Bb4 {[%clk 0:01:01]} 29. h3 {[%clk 0:02:14]}  e5 {[%clk 0:01:01]} 30. Re3 {[%clk 0:02:13]}  f6 {[%clk 0:01:00]} 31. Be4 {[%clk 0:02:11]}  Bc5 {[%clk 0:00:57]} 32. b4 {[%clk 0:02:04]}  Bxe3 {[%clk 0:00:43]} 33. bxa5 {[%clk 0:02:05]}  Bd2 {[%clk 0:00:42]} 34. a6 {[%clk 0:02:04]}  bxa6 {[%clk 0:00:38]} 35. Bxc6 {[%clk 0:02:05]}  Bxh3 {[%clk 0:00:37]} 36. Rb7+ {[%clk 0:02:03]}  Kd6 {[%clk 0:00:37]} 37. Bd5 {[%clk 0:02:01]}  a5 {[%clk 0:00:32]} 38. Rxg7 {[%clk 0:01:59]}  Bd7 {[%clk 0:00:27]} 39. Rf7 {[%clk 0:01:46]}  Bg5 {[%clk 0:00:26]} 40. Rf8 {[%clk 0:01:39]}  a4 {[%clk 0:00:24]} 41. Ra8 {[%clk 0:01:36]}  h5 {[%clk 0:00:20]} 42. Ra7 {[%clk 0:01:28]}  h4 {[%clk 0:00:18]} 43. Be4 {[%clk 0:01:04]}  f5 {[%clk 0:00:16]} 44. c5+ {[%clk 0:01:02]}  Kxc5 {[%clk 0:00:14]} 45. Rxd7 {[%clk 0:00:58]}  fxe4 {[%clk 0:00:13]} 46. Ra7 {[%clk 0:00:57]}  Kb4 {[%clk 0:00:12]} 47. Rg7 {[%clk 0:00:49]}  Bd8 {[%clk 0:00:10]} 48. Rg4 {[%clk 0:00:44]}  hxg3 {[%clk 0:00:06]} 49. Rxe4+ {[%clk 0:00:44]}  Kb3 {[%clk 0:00:04]} 50. fxg3 {[%clk 0:00:44]}  a3 {[%clk 0:00:04]} 51. Re3+ {[%clk 0:00:34]}  Kb2 {[%clk 0:00:03]} 52. Re2+ {[%clk 0:00:34]}  Kb1 {[%clk 0:00:02]} 53. Re1+ {[%clk 0:00:34]}  Kb2 {[%clk 0:00:03]} 54. Re2+ {[%clk 0:00:20]}  Kb1 {[%clk 0:00:03]} 55. Rd2 {[%clk 0:00:20]}  a2 {[%clk 0:00:03]} 56. Rxd8 {[%clk 0:00:20]}  a1=Q {[%clk 0:00:02]} 57. Rd1+ {[%clk 0:00:20]}  Kb2 {[%clk 0:00:02]} 58. Rxa1 {[%clk 0:00:21]}  Kxa1 {[%clk 0:00:02]} 59. g4 {[%clk 0:00:22]}  Kb2 {[%clk 0:00:02]} 60. g5 {[%clk 0:00:23]}  e4 {[%clk 0:00:03]} 61. g6 {[%clk 0:00:17]}  e3 {[%clk 0:00:00]} 62. g7 {[%clk 0:00:15]} 1-0


[Site "https://www.chess.com"]

[Event "Titled Tuesday Blitz November 14 Early 2023"]
[White "Sharafiev, Azat"]
[Black "parintele_chess"]
[WhiteFideId "4186214"]
[WhiteElo "2343"]
[BlackElo "2234"]
[Result "1-0"]
[Round "7"]
[TimeControl "180+1"]
[Date "2023.11.14"]
[WhiteClock "0:01:11"]
[BlackClock "0:00:00"]
[Board "166"]

1. e4 {[%clk 0:03:00]}  e5 {[%clk 0:02:54]} 2. Nf3 {[%clk 0:03:00]}  Nc6 {[%clk 0:02:55]} 3. Bb5 {[%clk 0:02:59]}  a6 {[%clk 0:02:55]} 4. Ba4 {[%clk 0:02:59]}  Nf6 {[%clk 0:02:55]} 5. O-O {[%clk 0:02:59]}  Be7 {[%clk 0:02:55]} 6. c3 {[%clk 0:02:58]}  Nxe4 {[%clk 0:02:47]} 7. Re1 {[%clk 0:02:57]}  Nc5 {[%clk 0:02:36]} 8. Bxc6 {[%clk 0:02:55]}  dxc6 {[%clk 0:02:37]} 9. Nxe5 {[%clk 0:02:54]}  O-O {[%clk 0:02:36]} 10. d4 {[%clk 0:02:54]}  Nd7 {[%clk 0:02:33]} 11. Nxd7 {[%clk 0:02:54]}  Bxd7 {[%clk 0:02:34]} 12. Bf4 {[%clk 0:02:54]}  Bd6 {[%clk 0:02:32]} 13. Bxd6 {[%clk 0:02:53]}  cxd6 {[%clk 0:02:32]} 14. Nd2 {[%clk 0:02:53]}  Bf5 {[%clk 0:02:27]} 15. Qf3 {[%clk 0:02:53]}  Qf6 {[%clk 0:02:26]} 16. h3 {[%clk 0:02:50]}  Rae8 {[%clk 0:02:23]} 17. a4 {[%clk 0:02:45]}  Qg6 {[%clk 0:02:15]} 18. a5 {[%clk 0:02:38]}  f6 {[%clk 0:02:14]} 19. Nf1 {[%clk 0:02:32]}  d5 {[%clk 0:01:53]} 20. Ng3 {[%clk 0:02:32]}  Bc8 {[%clk 0:01:45]} 21. Qf4 {[%clk 0:02:31]}  Rxe1+ {[%clk 0:01:42]} 22. Rxe1 {[%clk 0:02:30]}  Re8 {[%clk 0:01:43]} 23. Rxe8+ {[%clk 0:02:28]}  Qxe8 {[%clk 0:01:44]} 24. Qc7 {[%clk 0:02:28]}  Qd7 {[%clk 0:01:44]} 25. Qb6 {[%clk 0:02:25]}  Kf7 {[%clk 0:01:40]} 26. Qc5 {[%clk 0:02:24]}  Qe7 {[%clk 0:01:38]} 27. Qb6 {[%clk 0:02:23]}  Qd7 {[%clk 0:01:38]} 28. b3 {[%clk 0:02:17]}  Qe6 {[%clk 0:01:34]} 29. c4 {[%clk 0:02:15]}  Ke7 {[%clk 0:01:05]} 30. Qc7+ {[%clk 0:02:12]}  Qd7 {[%clk 0:01:05]} 31. Qf4 {[%clk 0:02:13]}  Kf7 {[%clk 0:00:54]} 32. Kh2 {[%clk 0:02:08]}  Qd8 {[%clk 0:00:51]} 33. Qh4 {[%clk 0:02:04]}  Kg8 {[%clk 0:00:40]} 34. Qf4 {[%clk 0:02:03]}  Kf7 {[%clk 0:00:32]} 35. Nf1 {[%clk 0:01:55]}  Qxa5 {[%clk 0:00:27]} 36. Ne3 {[%clk 0:01:52]}  dxc4 {[%clk 0:00:22]} 37. bxc4 {[%clk 0:01:52]}  Be6 {[%clk 0:00:20]} 38. Qd6 {[%clk 0:01:49]}  b5 {[%clk 0:00:05]} 39. d5 {[%clk 0:01:45]}  cxd5 {[%clk 0:00:05]} 40. cxd5 {[%clk 0:01:45]}  Bc8 {[%clk 0:00:05]} 41. Qc5 {[%clk 0:01:43]}  Qd8 {[%clk 0:00:05]} 42. d6 {[%clk 0:01:42]}  Qd7 {[%clk 0:00:03]} 43. Qh5+ {[%clk 0:01:24]}  Kg8 {[%clk 0:00:02]} 44. Qd5+ {[%clk 0:01:24]}  Kf8 {[%clk 0:00:02]} 45. Qc5 {[%clk 0:01:20]}  a5 {[%clk 0:00:02]} 46. Kg1 {[%clk 0:01:11]}  a4 {[%clk 0:00:00]} 47. Nd5 {[%clk 0:01:11]} 1-0


[Site "https://www.chess.com"]

[Event "Titled Tuesday Blitz November 14 Early 2023"]
[White "Pasmendjambvirgulptipon98"]
[Black "KatakuriDono"]
[WhiteElo "2224"]
[BlackElo "2342"]
[Result "0-1"]
[Round "7"]
[TimeControl "180+1"]
[Date "2023.11.14"]
[WhiteClock "0:00:07"]
[BlackClock "0:00:17"]
[Board "167"]

1. d4 {[%clk 0:02:58]}  d5 {[%clk 0:02:59]} 2. Nf3 {[%clk 0:02:58]}  Nf6 {[%clk 0:02:57]} 3. Bf4 {[%clk 0:02:56]}  c5 {[%clk 0:02:56]} 4. e3 {[%clk 0:02:54]}  Nc6 {[%clk 0:02:56]} 5. c3 {[%clk 0:02:54]}  e6 {[%clk 0:02:56]} 6. Nbd2 {[%clk 0:02:54]}  cxd4 {[%clk 0:02:56]} 7. exd4 {[%clk 0:02:50]}  Nh5 {[%clk 0:02:56]} 8. Bg3 {[%clk 0:02:46]}  Nxg3 {[%clk 0:02:52]} 9. hxg3 {[%clk 0:02:47]}  Bd6 {[%clk 0:02:52]} 10. Bd3 {[%clk 0:02:47]}  h6 {[%clk 0:02:51]} 11. Qe2 {[%clk 0:02:43]}  a6 {[%clk 0:02:51]} 12. Ne5 {[%clk 0:02:40]}  Nxe5 {[%clk 0:02:43]} 13. dxe5 {[%clk 0:02:39]}  Be7 {[%clk 0:02:44]} 14. Qg4 {[%clk 0:02:34]}  Bf8 {[%clk 0:02:38]} 15. Nb3 {[%clk 0:02:24]}  b5 {[%clk 0:02:33]} 16. Nd4 {[%clk 0:02:23]}  Bd7 {[%clk 0:02:28]} 17. f4 {[%clk 0:02:16]}  b4 {[%clk 0:02:27]} 18. O-O {[%clk 0:02:10]}  h5 {[%clk 0:02:19]} 19. Qf3 {[%clk 0:02:06]}  Bc5 {[%clk 0:02:03]} 20. f5 {[%clk 0:01:41]}  Qg5 {[%clk 0:01:40]} 21. Rae1 {[%clk 0:01:25]}  h4 {[%clk 0:01:35]} 22. g4 {[%clk 0:01:24]}  bxc3 {[%clk 0:01:24]} 23. bxc3 {[%clk 0:01:24]}  Rb8 {[%clk 0:01:17]} 24. Kh1 {[%clk 0:01:18]}  Bxd4 {[%clk 0:01:12]} 25. cxd4 {[%clk 0:01:18]}  h3 {[%clk 0:00:51]} 26. gxh3 {[%clk 0:00:46]}  Rc8 {[%clk 0:00:31]} 27. Bxa6 {[%clk 0:00:34]}  Rc2 {[%clk 0:00:21]} 28. fxe6 {[%clk 0:00:30]}  Bxe6 {[%clk 0:00:19]} 29. Bb5+ {[%clk 0:00:29]}  Kf8 {[%clk 0:00:20]} 30. Qa3+ {[%clk 0:00:25]}  Kg8 {[%clk 0:00:19]} 31. Qa8+ {[%clk 0:00:14]}  Rc8 {[%clk 0:00:19]} 32. Qa3 {[%clk 0:00:13]}  Qxg4 {[%clk 0:00:18]} 33. Rg1 {[%clk 0:00:07]}  Rxh3+ {[%clk 0:00:17]} 0-1


[Site "https://www.chess.com"]

[Event "Titled Tuesday Blitz November 14 Early 2023"]
[White "VitaliyChayka"]
[Black "Kornyukov, Alexey"]
[BlackFideId "4150457"]
[WhiteElo "2228"]
[BlackElo "2338"]
[Result "1-0"]
[Round "7"]
[TimeControl "180+1"]
[Date "2023.11.14"]
[WhiteClock "0:01:34"]
[BlackClock "0:00:10"]
[Board "168"]

1. d4 {[%clk 0:03:00]}  d5 {[%clk 0:02:58]} 2. Bf4 {[%clk 0:03:00]}  Nf6 {[%clk 0:02:56]} 3. e3 {[%clk 0:03:01]}  e6 {[%clk 0:02:55]} 4. Nf3 {[%clk 0:03:00]}  Bd6 {[%clk 0:02:55]} 5. Bg3 {[%clk 0:03:00]}  Bxg3 {[%clk 0:02:54]} 6. hxg3 {[%clk 0:03:01]}  Nbd7 {[%clk 0:02:54]} 7. Nbd2 {[%clk 0:03:02]}  O-O {[%clk 0:02:53]} 8. Bd3 {[%clk 0:03:02]}  c5 {[%clk 0:02:52]} 9. c3 {[%clk 0:03:02]}  c4 {[%clk 0:02:52]} 10. Bc2 {[%clk 0:03:02]}  Qb6 {[%clk 0:02:52]} 11. Rb1 {[%clk 0:03:02]}  Qa6 {[%clk 0:02:49]} 12. g4 {[%clk 0:03:01]}  g6 {[%clk 0:02:40]} 13. a3 {[%clk 0:02:56]}  Nxg4 {[%clk 0:02:35]} 14. e4 {[%clk 0:02:40]}  dxe4 {[%clk 0:02:26]} 15. Nxe4 {[%clk 0:02:39]}  f5 {[%clk 0:01:55]} 16. Neg5 {[%clk 0:02:34]}  Ndf6 {[%clk 0:01:52]} 17. Qe2 {[%clk 0:02:30]}  h5 {[%clk 0:01:39]} 18. Kd2 {[%clk 0:02:18]}  Nd5 {[%clk 0:01:34]} 19. g3 {[%clk 0:02:14]}  Bd7 {[%clk 0:01:11]} 20. Rbe1 {[%clk 0:02:12]}  Rae8 {[%clk 0:01:06]} 21. Ne5 {[%clk 0:02:12]}  Nxe5 {[%clk 0:01:01]} 22. Qxe5 {[%clk 0:02:13]}  Qb6 {[%clk 0:00:57]} 23. Kc1 {[%clk 0:02:07]}  Qc7 {[%clk 0:00:54]} 24. Qe2 {[%clk 0:02:07]}  b5 {[%clk 0:00:50]} 25. f3 {[%clk 0:02:06]}  a5 {[%clk 0:00:50]} 26. Qd2 {[%clk 0:02:00]}  Qxg3 {[%clk 0:00:45]} 27. Nh3 {[%clk 0:01:58]}  Qxf3 {[%clk 0:00:42]} 28. Bd1 {[%clk 0:01:49]}  Qd3 {[%clk 0:00:37]} 29. Qh6 {[%clk 0:01:42]}  Rf6 {[%clk 0:00:32]} 30. Rhg1 {[%clk 0:01:38]}  Ne7 {[%clk 0:00:28]} 31. Nf4 {[%clk 0:01:35]}  Qe4 {[%clk 0:00:12]} 32. Rxe4 {[%clk 0:01:34]}  fxe4 {[%clk 0:00:12]} 33. Nxh5 {[%clk 0:01:34]}  Rf5 {[%clk 0:00:10]} 34. Rxg6+ {[%clk 0:01:33]}  Nxg6 {[%clk 0:00:10]} 35. Qxg6+ {[%clk 0:01:34]}  Kf8 {[%clk 0:00:10]} 36. Qg7# {[%clk 0:01:34]} 1-0


[Site "https://www.chess.com"]

[Event "Titled Tuesday Blitz November 14 Early 2023"]
[White "dumbernugget"]
[Black "Perez Rodriguez, Luis Manuel"]
[BlackFideId "3503364"]
[WhiteElo "1946"]
[BlackElo "2572"]
[Result "0-1"]
[Round "7"]
[TimeControl "180+1"]
[Date "2023.11.14"]
[WhiteClock "0:00:14"]
[BlackClock "0:00:42"]
[Board "170"]

1. d4 {[%clk 0:03:00]}  d5 {[%clk 0:02:57]} 2. c4 {[%clk 0:02:59]}  c6 {[%clk 0:02:58]} 3. cxd5 {[%clk 0:02:58]}  cxd5 {[%clk 0:02:57]} 4. Nc3 {[%clk 0:02:58]}  Nf6 {[%clk 0:02:58]} 5. Bf4 {[%clk 0:02:58]}  Nc6 {[%clk 0:02:58]} 6. e3 {[%clk 0:02:59]}  a6 {[%clk 0:02:59]} 7. Nf3 {[%clk 0:02:54]}  Bg4 {[%clk 0:02:59]} 8. Be2 {[%clk 0:02:54]}  Bxf3 {[%clk 0:02:59]} 9. Bxf3 {[%clk 0:02:54]}  e6 {[%clk 0:03:00]} 10. O-O {[%clk 0:02:54]}  Bd6 {[%clk 0:03:01]} 11. Bxd6 {[%clk 0:02:53]}  Qxd6 {[%clk 0:03:02]} 12. Rc1 {[%clk 0:02:50]}  O-O {[%clk 0:03:02]} 13. Na4 {[%clk 0:02:50]}  e5 {[%clk 0:02:57]} 14. dxe5 {[%clk 0:02:48]}  Nxe5 {[%clk 0:02:58]} 15. Be2 {[%clk 0:02:48]}  Rac8 {[%clk 0:02:56]} 16. Qb3 {[%clk 0:02:33]}  b5 {[%clk 0:02:52]} 17. Nc3 {[%clk 0:02:30]}  d4 {[%clk 0:02:46]} 18. Rcd1 {[%clk 0:02:22]}  d3 {[%clk 0:02:43]} 19. Rfe1 {[%clk 0:01:41]}  Rfd8 {[%clk 0:02:31]} 20. f4 {[%clk 0:01:32]}  d2 {[%clk 0:02:24]} 21. Rf1 {[%clk 0:01:25]}  Neg4 {[%clk 0:02:21]} 22. Bxg4 {[%clk 0:01:13]}  Nxg4 {[%clk 0:02:22]} 23. Ne4 {[%clk 0:01:13]}  Qb6 {[%clk 0:01:50]} 24. Rxd2 {[%clk 0:01:10]}  Nxe3 {[%clk 0:01:42]} 25. Rxd8+ {[%clk 0:01:05]}  Rxd8 {[%clk 0:01:43]} 26. Rc1 {[%clk 0:00:58]}  Nd1+ {[%clk 0:00:58]} 27. Kh1 {[%clk 0:00:42]}  Qd4 {[%clk 0:00:58]} 28. Qf3 {[%clk 0:00:29]}  h6 {[%clk 0:00:46]} 29. Ng3 {[%clk 0:00:17]}  Nf2+ {[%clk 0:00:43]} 30. Kg1 {[%clk 0:00:17]}  Nd3+ {[%clk 0:00:42]} 31. Kh1 {[%clk 0:00:14]}  Nxc1 {[%clk 0:00:42]} 0-1


[Site "https://www.chess.com"]

[Event "Titled Tuesday Blitz November 14 Early 2023"]
[White "Alimpic, Aleksa"]
[Black "Feliz Dotel, Dewar Bienvenido"]
[WhiteFideId "974323"]
[BlackFideId "6402801"]
[WhiteElo "2507"]
[BlackElo "2154"]
[Result "1-0"]
[Round "7"]
[TimeControl "180+1"]
[Date "2023.11.14"]
[WhiteClock "0:00:31"]
[BlackClock "0:00:00"]
[Board "172"]

1. d4 {[%clk 0:02:57]}  d5 {[%clk 0:02:59]} 2. Nf3 {[%clk 0:02:49]}  e6 {[%clk 0:02:59]} 3. g3 {[%clk 0:02:48]}  c5 {[%clk 0:02:59]} 4. Bg2 {[%clk 0:02:49]}  Nc6 {[%clk 0:02:56]} 5. O-O {[%clk 0:02:46]}  Nf6 {[%clk 0:02:56]} 6. c4 {[%clk 0:02:45]}  cxd4 {[%clk 0:02:53]} 7. Nxd4 {[%clk 0:02:43]}  Be7 {[%clk 0:02:41]} 8. Nc3 {[%clk 0:02:37]}  O-O {[%clk 0:02:38]} 9. cxd5 {[%clk 0:02:37]}  exd5 {[%clk 0:02:38]} 10. Bg5 {[%clk 0:02:34]}  Nxd4 {[%clk 0:02:31]} 11. Qxd4 {[%clk 0:02:33]}  Be6 {[%clk 0:02:31]} 12. Rfd1 {[%clk 0:02:25]}  Re8 {[%clk 0:02:26]} 13. Qd2 {[%clk 0:02:16]}  Qb6 {[%clk 0:02:00]} 14. Bxf6 {[%clk 0:01:50]}  Bxf6 {[%clk 0:02:00]} 15. Nxd5 {[%clk 0:01:50]}  Bxd5 {[%clk 0:01:54]} 16. Bxd5 {[%clk 0:01:49]}  Qxb2 {[%clk 0:01:52]} 17. Rab1 {[%clk 0:01:41]}  Qxd2 {[%clk 0:01:23]} 18. Rxd2 {[%clk 0:01:42]}  Rab8 {[%clk 0:01:21]} 19. Rxb7 {[%clk 0:01:36]}  Rxb7 {[%clk 0:01:21]} 20. Bxb7 {[%clk 0:01:37]}  h6 {[%clk 0:01:10]} 21. e4 {[%clk 0:01:30]}  Re7 {[%clk 0:01:01]} 22. Bd5 {[%clk 0:01:25]}  Rc7 {[%clk 0:01:01]} 23. h4 {[%clk 0:01:17]}  Bc3 {[%clk 0:00:59]} 24. Rd3 {[%clk 0:01:11]}  Ba5 {[%clk 0:00:58]} 25. h5 {[%clk 0:01:03]}  Bb6 {[%clk 0:00:58]} 26. Rd2 {[%clk 0:00:56]}  Kf8 {[%clk 0:00:56]} 27. Kg2 {[%clk 0:00:54]}  Ke7 {[%clk 0:00:55]} 28. f4 {[%clk 0:00:50]}  g6 {[%clk 0:00:50]} 29. hxg6 {[%clk 0:00:50]}  fxg6 {[%clk 0:00:49]} 30. Bb3 {[%clk 0:00:49]}  Be3 {[%clk 0:00:45]} 31. Rd3 {[%clk 0:00:44]}  Bb6 {[%clk 0:00:43]} 32. Kf3 {[%clk 0:00:42]}  Ba5 {[%clk 0:00:37]} 33. Rd5 {[%clk 0:00:40]}  Rc3+ {[%clk 0:00:34]} 34. Kg2 {[%clk 0:00:40]}  Bb6 {[%clk 0:00:31]} 35. Re5+ {[%clk 0:00:38]}  Kf8 {[%clk 0:00:27]} 36. Re6 {[%clk 0:00:37]}  g5 {[%clk 0:00:05]} 37. Rxh6 {[%clk 0:00:33]}  gxf4 {[%clk 0:00:05]} 38. gxf4 {[%clk 0:00:33]}  Bc7 {[%clk 0:00:00]} 39. e5 {[%clk 0:00:31]} 1-0


[Site "https://www.chess.com"]

[Event "Titled Tuesday Blitz November 14 Early 2023"]
[White "Balla, Tamas-Kristof"]
[Black "Hartikainen, Jarmo"]
[WhiteFideId "1208497"]
[BlackFideId "503134"]
[WhiteElo "2409"]
[BlackElo "2152"]
[Result "1-0"]
[Round "7"]
[TimeControl "180+1"]
[Date "2023.11.14"]
[WhiteClock "0:00:47"]
[BlackClock "0:00:14"]
[Board "173"]

1. e4 {[%clk 0:03:00]}  e5 {[%clk 0:02:59]} 2. Nf3 {[%clk 0:02:58]}  Nf6 {[%clk 0:02:58]} 3. Nxe5 {[%clk 0:02:58]}  d6 {[%clk 0:02:59]} 4. Nf3 {[%clk 0:02:58]}  Nxe4 {[%clk 0:02:59]} 5. Nc3 {[%clk 0:02:58]}  d5 {[%clk 0:02:58]} 6. Qe2 {[%clk 0:02:50]}  Be7 {[%clk 0:02:37]} 7. Nxe4 {[%clk 0:02:48]}  dxe4 {[%clk 0:02:38]} 8. Qxe4 {[%clk 0:02:48]}  O-O {[%clk 0:02:37]} 9. Bd3 {[%clk 0:02:40]}  f5 {[%clk 0:02:21]} 10. Qc4+ {[%clk 0:02:38]}  Kh8 {[%clk 0:02:19]} 11. O-O {[%clk 0:02:38]}  Bf6 {[%clk 0:02:11]} 12. Rb1 {[%clk 0:02:30]}  Nc6 {[%clk 0:02:08]} 13. Re1 {[%clk 0:02:27]}  Re8 {[%clk 0:02:06]} 14. Rxe8+ {[%clk 0:02:23]}  Qxe8 {[%clk 0:02:07]} 15. b3 {[%clk 0:02:17]}  Be6 {[%clk 0:02:03]} 16. Qf4 {[%clk 0:02:07]}  Qh5 {[%clk 0:01:15]} 17. Bb2 {[%clk 0:01:59]}  Bxb2 {[%clk 0:01:12]} 18. Rxb2 {[%clk 0:02:00]}  Re8 {[%clk 0:01:05]} 19. Rb1 {[%clk 0:01:56]}  Bd5 {[%clk 0:00:57]} 20. Nd4 {[%clk 0:01:38]}  Qg6 {[%clk 0:00:30]} 21. g3 {[%clk 0:00:50]}  Nxd4 {[%clk 0:00:24]} 22. Qxd4 {[%clk 0:00:51]}  c6 {[%clk 0:00:23]} 23. Qf4 {[%clk 0:00:50]}  Qe6 {[%clk 0:00:16]} 24. c4 {[%clk 0:00:47]}  Qe1+ {[%clk 0:00:14]} 25. Rxe1 {[%clk 0:00:47]}  Rxe1+ {[%clk 0:00:14]} 26. Bf1 {[%clk 0:00:47]}  Be4 {[%clk 0:00:14]} 27. Qb8# {[%clk 0:00:47]} 1-0


[Site "https://www.chess.com"]